[Event "Titled Tuesday Blitz April 18 Late 2023"]
[White "Bueno, Alfeu Junior Varela"]
[Black "Golubev, Mikhail"]
[WhiteFideId "2108879"]
[BlackFideId "14100983"]
[WhiteElo "2175"]
[BlackElo "2374"]
[Result "0-1"]
[Round "08"]
[TimeControl "180+2"]
[Date "2023.04.18"]
[WhiteClock "0:00:04"]
[BlackClock "0:00:04"]

1. e4 {[%clk 0:03:00]}  c5 {[%clk 0:02:57]} 2. Nc3 {[%clk 0:03:01]}  g6 {[%clk 0:02:55]} 3. f4 {[%clk 0:03:01]}  Bg7 {[%clk 0:02:54]} 4. Nf3 {[%clk 0:03:02]}  Nc6 {[%clk 0:02:52]} 5. Bb5 {[%clk 0:03:02]}  Nd4 {[%clk 0:02:50]} 6. O-O {[%clk 0:03:02]}  Nxb5 {[%clk 0:02:39]} 7. Nxb5 {[%clk 0:03:03]}  d6 {[%clk 0:02:39]} 8. d3 {[%clk 0:03:03]}  Nf6 {[%clk 0:02:39]} 9. Nc3 {[%clk 0:03:01]}  O-O {[%clk 0:02:37]} 10. Qe1 {[%clk 0:03:02]}  a6 {[%clk 0:02:09]} 11. Qh4 {[%clk 0:03:01]}  b5 {[%clk 0:02:08]} 12. f5 {[%clk 0:03:01]}  b4 {[%clk 0:01:45]} 13. Ne2 {[%clk 0:02:56]}  gxf5 {[%clk 0:00:56]} 14. Bh6 {[%clk 0:02:52]}  e5 {[%clk 0:00:23]} 15. Ng5 {[%clk 0:02:46]}  Kh8 {[%clk 0:00:07]} 16. Rf3 {[%clk 0:01:43]}  f4 {[%clk 0:00:06]} 17. Raf1 {[%clk 0:01:26]}  Bg4 {[%clk 0:00:05]} 18. R3f2 {[%clk 0:01:26]}  Bh5 {[%clk 0:00:05]} 19. Bxg7+ {[%clk 0:01:10]}  Kxg7 {[%clk 0:00:06]} 20. Nxh7 {[%clk 0:01:06]}  Nxh7 {[%clk 0:00:05]} 21. Qxh5 {[%clk 0:01:05]}  Qg5 {[%clk 0:00:05]} 22. Qh3 {[%clk 0:00:55]}  Nf6 {[%clk 0:00:05]} 23. g3 {[%clk 0:00:41]}  Rh8 {[%clk 0:00:05]} 24. Qg2 {[%clk 0:00:42]}  Rh6 {[%clk 0:00:03]} 25. gxf4 {[%clk 0:00:40]}  Qxg2+ {[%clk 0:00:03]} 26. Rxg2+ {[%clk 0:00:41]}  Kh7 {[%clk 0:00:03]} 27. fxe5 {[%clk 0:00:40]}  dxe5 {[%clk 0:00:04]} 28. Rgf2 {[%clk 0:00:40]}  Rg8+ {[%clk 0:00:04]} 29. Kh1 {[%clk 0:00:40]}  Rgg6 {[%clk 0:00:04]} 30. Ng3 {[%clk 0:00:40]}  Ng4 {[%clk 0:00:03]} 31. Rxf7+ {[%clk 0:00:40]}  Kh8 {[%clk 0:00:03]} 32. Rf8+ {[%clk 0:00:37]}  Rg8 {[%clk 0:00:03]} 33. Rxg8+ {[%clk 0:00:25]}  Kxg8 {[%clk 0:00:04]} 34. Rf5 {[%clk 0:00:23]}  Rxh2+ {[%clk 0:00:04]} 35. Kg1 {[%clk 0:00:24]}  Rxc2 {[%clk 0:00:03]} 36. Rg5+ {[%clk 0:00:23]}  Kf8 {[%clk 0:00:03]} 37. Rxg4 {[%clk 0:00:24]}  Rxb2 {[%clk 0:00:03]} 38. Rg5 {[%clk 0:00:20]}  Rxa2 {[%clk 0:00:04]} 39. Rxe5 {[%clk 0:00:21]}  b3 {[%clk 0:00:04]} 40. Nf1 {[%clk 0:00:12]}  Ra1 {[%clk 0:00:04]} 41. Kf2 {[%clk 0:00:11]}  b2 {[%clk 0:00:04]} 42. Nd2 {[%clk 0:00:10]}  Rd1 {[%clk 0:00:04]} 43. Ke2 {[%clk 0:00:09]}  Rxd2+ {[%clk 0:00:04]} 44. Kxd2 {[%clk 0:00:10]}  b1=Q {[%clk 0:00:05]} 45. Rxc5 {[%clk 0:00:11]}  Qb4+ {[%clk 0:00:05]} 46. Rc3 {[%clk 0:00:12]}  a5 {[%clk 0:00:05]} 47. Kc2 {[%clk 0:00:12]}  a4 {[%clk 0:00:05]} 48. e5 {[%clk 0:00:06]}  a3 {[%clk 0:00:04]} 49. Rb3 {[%clk 0:00:05]}  Qa4 {[%clk 0:00:04]} 50. Kc3 {[%clk 0:00:04]}  a2 {[%clk 0:00:04]} 51. Ra3 {[%clk 0:00:04]}  Qxa3+ {[%clk 0:00:04]} 0-1


[Site "https://www.chess.com"]

[Event "Titled Tuesday Blitz April 18 Late 2023"]
[White "Garmash, Aliona"]
[Black "Gerbelli Neto, Eduardo"]
[WhiteFideId "34127620"]
[BlackFideId "2103281"]
[WhiteElo "1959"]
[BlackElo "2178"]
[Result "0-1"]
[Round "08"]
[TimeControl "180+2"]
[Date "2023.04.18"]
[WhiteClock "0:00:02"]
[BlackClock "0:00:49"]

1. d4 {[%clk 0:03:00]}  d5 {[%clk 0:02:55]} 2. c4 {[%clk 0:03:00]}  c6 {[%clk 0:02:53]} 3. Nf3 {[%clk 0:02:59]}  Nf6 {[%clk 0:02:54]} 4. Nc3 {[%clk 0:02:59]}  e6 {[%clk 0:02:54]} 5. Bg5 {[%clk 0:02:57]}  dxc4 {[%clk 0:02:54]} 6. e4 {[%clk 0:02:56]}  b5 {[%clk 0:02:55]} 7. e5 {[%clk 0:02:56]}  h6 {[%clk 0:02:55]} 8. Bh4 {[%clk 0:02:57]}  g5 {[%clk 0:02:56]} 9. Nxg5 {[%clk 0:02:57]}  Nd5 {[%clk 0:02:56]} 10. Nf3 {[%clk 0:02:45]}  Qa5 {[%clk 0:02:56]} 11. Qd2 {[%clk 0:02:37]}  Bb4 {[%clk 0:02:56]} 12. Rc1 {[%clk 0:02:31]}  Nd7 {[%clk 0:02:54]} 13. Be2 {[%clk 0:02:25]}  c5 {[%clk 0:02:50]} 14. O-O {[%clk 0:02:10]}  Bxc3 {[%clk 0:02:48]} 15. bxc3 {[%clk 0:02:10]}  cxd4 {[%clk 0:02:48]} 16. Qxd4 {[%clk 0:02:01]}  Bb7 {[%clk 0:02:43]} 17. Rc2 {[%clk 0:01:50]}  Qb6 {[%clk 0:02:33]} 18. Qg4 {[%clk 0:01:43]}  Qc5 {[%clk 0:02:18]} 19. Rb1 {[%clk 0:01:00]}  Bc6 {[%clk 0:02:10]} 20. Nd2 {[%clk 0:00:47]}  Nxe5 {[%clk 0:02:01]} 21. Qg7 {[%clk 0:00:46]}  Ng6 {[%clk 0:01:58]} 22. Bg3 {[%clk 0:00:36]}  Qe7 {[%clk 0:01:39]} 23. Ne4 {[%clk 0:00:35]}  O-O-O {[%clk 0:01:27]} 24. Qd4 {[%clk 0:00:14]}  Ndf4 {[%clk 0:01:17]} 25. Qe3 {[%clk 0:00:14]}  Nxe2+ {[%clk 0:01:09]} 26. Qxe2 {[%clk 0:00:14]}  f5 {[%clk 0:01:05]} 27. Nd2 {[%clk 0:00:11]}  f4 {[%clk 0:01:03]} 28. Qh5 {[%clk 0:00:02]}  Qg5 {[%clk 0:00:49]} 0-1


[Site "https://www.chess.com"]

[Event "Titled Tuesday Blitz April 18 Late 2023"]
[White "ayme97"]
[Black "Schuster, Karsten"]
[BlackFideId "4611071"]
[WhiteElo "2221"]
[BlackElo "2294"]
[Result "1-0"]
[Round "08"]
[TimeControl "180+2"]
[Date "2023.04.18"]
[WhiteClock "0:01:35"]
[BlackClock "0:02:14"]

1. d4 {[%clk 0:02:50]}  d5 {[%clk 0:02:58]} 2. c4 {[%clk 0:02:50]}  e6 {[%clk 0:02:59]} 3. Nc3 {[%clk 0:02:50]}  Nf6 {[%clk 0:02:59]} 4. Nf3 {[%clk 0:02:51]}  Be7 {[%clk 0:02:59]} 5. Bf4 {[%clk 0:02:50]}  O-O {[%clk 0:02:58]} 6. e3 {[%clk 0:02:49]}  Nbd7 {[%clk 0:02:53]} 7. cxd5 {[%clk 0:02:48]}  Nxd5 {[%clk 0:02:52]} 8. Bg3 {[%clk 0:02:47]}  N7f6 {[%clk 0:02:50]} 9. Bd3 {[%clk 0:02:47]}  b6 {[%clk 0:02:47]} 10. O-O {[%clk 0:02:45]}  Bb7 {[%clk 0:02:48]} 11. Nxd5 {[%clk 0:02:38]}  Bxd5 {[%clk 0:02:46]} 12. Qc2 {[%clk 0:02:35]}  c5 {[%clk 0:02:40]} 13. e4 {[%clk 0:02:29]}  Bb7 {[%clk 0:02:35]} 14. e5 {[%clk 0:02:29]}  Nd5 {[%clk 0:02:30]} 15. Bxh7+ {[%clk 0:02:28]}  Kh8 {[%clk 0:02:31]} 16. Be4 {[%clk 0:02:14]}  Kg8 {[%clk 0:02:32]} 17. dxc5 {[%clk 0:02:08]}  Kh8 {[%clk 0:02:33]} 18. cxb6 {[%clk 0:01:55]}  Nb4 {[%clk 0:02:34]} 19. Qe2 {[%clk 0:01:52]}  Nc2 {[%clk 0:02:35]} 20. Bxc2 {[%clk 0:01:51]}  axb6 {[%clk 0:02:21]} 21. Qd3 {[%clk 0:01:45]}  g6 {[%clk 0:02:21]} 22. Qxd8 {[%clk 0:01:44]}  Rfxd8 {[%clk 0:02:20]} 23. Rfd1 {[%clk 0:01:43]}  Rxd1+ {[%clk 0:02:20]} 24. Bxd1 {[%clk 0:01:42]}  Rd8 {[%clk 0:02:14]} 25. Rc1 {[%clk 0:01:35]} 1-0


[Site "https://www.chess.com"]

[Event "Titled Tuesday Blitz April 18 Late 2023"]
[White "Garrido, Denis"]
[Black "Eisa Mohmood, Alkhoori"]
[WhiteFideId "601217"]
[BlackFideId "9316116"]
[WhiteElo "2315"]
[BlackElo "1310"]
[Result "0-1"]
[Round "08"]
[TimeControl "180+2"]
[Date "2023.04.18"]
[WhiteClock "0:00:02"]
[BlackClock "0:00:49"]

1. d4 {[%clk 0:03:00]}  Nf6 {[%clk 0:02:48]} 2. c4 {[%clk 0:02:59]}  e6 {[%clk 0:02:43]} 3. Nc3 {[%clk 0:02:59]}  d5 {[%clk 0:02:43]} 4. cxd5 {[%clk 0:02:59]}  exd5 {[%clk 0:02:42]} 5. Bg5 {[%clk 0:02:59]}  Be7 {[%clk 0:02:39]} 6. e3 {[%clk 0:02:59]}  O-O {[%clk 0:02:38]} 7. Bd3 {[%clk 0:02:59]}  c6 {[%clk 0:02:36]} 8. Nge2 {[%clk 0:02:58]}  Re8 {[%clk 0:02:36]} 9. O-O {[%clk 0:02:56]}  Nbd7 {[%clk 0:02:36]} 10. a4 {[%clk 0:02:55]}  Nf8 {[%clk 0:02:35]} 11. a5 {[%clk 0:02:47]}  Ng6 {[%clk 0:02:35]} 12. Qc2 {[%clk 0:02:21]}  Ne4 {[%clk 0:02:27]} 13. Bxe7 {[%clk 0:02:20]}  Qxe7 {[%clk 0:02:26]} 14. a6 {[%clk 0:02:16]}  b6 {[%clk 0:02:13]} 15. Nxe4 {[%clk 0:01:42]}  dxe4 {[%clk 0:02:12]} 16. Bc4 {[%clk 0:01:43]}  Bg4 {[%clk 0:02:07]} 17. Nc3 {[%clk 0:01:39]}  Nh4 {[%clk 0:01:56]} 18. Kh1 {[%clk 0:01:32]}  Nxg2 {[%clk 0:01:51]} 19. Rg1 {[%clk 0:01:09]}  Nxe3 {[%clk 0:01:41]} 20. fxe3 {[%clk 0:01:08]}  Bf3+ {[%clk 0:01:42]} 21. Rg2 {[%clk 0:01:09]}  Qg5 {[%clk 0:01:41]} 22. Rf1 {[%clk 0:00:58]}  Qxe3 {[%clk 0:01:37]} 23. d5 {[%clk 0:00:36]}  Rad8 {[%clk 0:01:33]} 24. Nd1 {[%clk 0:00:17]}  Qd4 {[%clk 0:01:30]} 25. Nf2 {[%clk 0:00:11]}  cxd5 {[%clk 0:01:27]} 26. Bb5 {[%clk 0:00:10]}  Re6 {[%clk 0:01:14]} 27. Kg1 {[%clk 0:00:10]}  Bxg2 {[%clk 0:01:11]} 28. Kxg2 {[%clk 0:00:11]}  e3 {[%clk 0:01:08]} 29. Qc7 {[%clk 0:00:10]}  Rg6+ {[%clk 0:01:05]} 30. Kh1 {[%clk 0:00:10]}  Qh4 {[%clk 0:00:59]} 31. Ng4 {[%clk 0:00:10]}  Rf8 {[%clk 0:00:54]} 32. Ne5 {[%clk 0:00:02]}  Qe4+ {[%clk 0:00:51]} 33. Nf3 {[%clk 0:00:02]}  e2 {[%clk 0:00:50]} 34. Bxe2 {[%clk 0:00:02]}  Qxe2 {[%clk 0:00:49]} 0-1


[Site "https://www.chess.com"]

[Event "Titled Tuesday Blitz April 18 Late 2023"]
[White "De Souza, Cristiano Gomes"]
[Black "QuiesPrecatio"]
[WhiteFideId "2151758"]
[WhiteElo "2068"]
[BlackElo "2432"]
[Result "1/2-1/2"]
[Round "08"]
[TimeControl "180+2"]
[Date "2023.04.18"]
[WhiteClock "0:00:04"]
[BlackClock "0:00:14"]

1. d4 {[%clk 0:02:59]}  Nf6 {[%clk 0:02:58]} 2. c3 {[%clk 0:02:57]}  b5 {[%clk 0:02:57]} 3. Bf4 {[%clk 0:02:56]}  Bb7 {[%clk 0:02:57]} 4. e3 {[%clk 0:02:55]}  a6 {[%clk 0:02:56]} 5. Nd2 {[%clk 0:02:55]}  e6 {[%clk 0:02:57]} 6. Ngf3 {[%clk 0:02:54]}  c5 {[%clk 0:02:57]} 7. a4 {[%clk 0:02:53]}  b4 {[%clk 0:02:56]} 8. Nc4 {[%clk 0:02:52]}  d5 {[%clk 0:02:54]} 9. Nce5 {[%clk 0:02:47]}  bxc3 {[%clk 0:02:54]} 10. bxc3 {[%clk 0:02:47]}  Qa5 {[%clk 0:02:54]} 11. Qc1 {[%clk 0:02:30]}  Nc6 {[%clk 0:02:47]} 12. Bd3 {[%clk 0:02:25]}  Nxe5 {[%clk 0:02:39]} 13. Bxe5 {[%clk 0:02:20]}  cxd4 {[%clk 0:02:39]} 14. exd4 {[%clk 0:02:16]}  Rc8 {[%clk 0:02:37]} 15. Bxf6 {[%clk 0:02:16]}  gxf6 {[%clk 0:02:36]} 16. O-O {[%clk 0:02:09]}  Rxc3 {[%clk 0:02:34]} 17. Qd2 {[%clk 0:02:08]}  Qc7 {[%clk 0:02:28]} 18. Rfc1 {[%clk 0:02:04]}  Rxc1+ {[%clk 0:02:28]} 19. Rxc1 {[%clk 0:02:04]}  Qd8 {[%clk 0:02:25]} 20. Qb2 {[%clk 0:02:01]}  Bc8 {[%clk 0:02:18]} 21. Qb8 {[%clk 0:01:58]}  Bd7 {[%clk 0:02:18]} 22. Qb7 {[%clk 0:01:55]}  Ba3 {[%clk 0:01:53]} 23. Rc3 {[%clk 0:01:48]}  Bd6 {[%clk 0:01:49]} 24. Qxa6 {[%clk 0:01:45]}  Qb8 {[%clk 0:01:45]} 25. Bb5 {[%clk 0:01:40]}  Bxb5 {[%clk 0:01:43]} 26. Rc8+ {[%clk 0:01:40]}  Kd7 {[%clk 0:01:36]} 27. Rxb8 {[%clk 0:01:36]}  Bxa6 {[%clk 0:01:34]} 28. Rxh8 {[%clk 0:01:35]}  Bd3 {[%clk 0:01:34]} 29. a5 {[%clk 0:01:33]}  Bb4 {[%clk 0:01:33]} 30. a6 {[%clk 0:01:33]}  Bxa6 {[%clk 0:01:32]} 31. Rxh7 {[%clk 0:01:33]}  Ke7 {[%clk 0:01:32]} 32. Rh8 {[%clk 0:01:30]}  Bc3 {[%clk 0:01:29]} 33. Ra8 {[%clk 0:01:28]}  Bc4 {[%clk 0:01:29]} 34. Ra7+ {[%clk 0:01:27]}  Kf8 {[%clk 0:01:28]} 35. h4 {[%clk 0:01:27]}  e5 {[%clk 0:01:29]} 36. dxe5 {[%clk 0:01:25]}  fxe5 {[%clk 0:01:29]} 37. h5 {[%clk 0:01:20]}  Kg7 {[%clk 0:01:24]} 38. h6+ {[%clk 0:01:09]}  Kxh6 {[%clk 0:01:24]} 39. Rxf7 {[%clk 0:01:09]}  e4 {[%clk 0:01:23]} 40. Nh2 {[%clk 0:01:03]}  Kg6 {[%clk 0:01:21]} 41. Rc7 {[%clk 0:01:02]}  Be5 {[%clk 0:01:19]} 42. Rc8 {[%clk 0:01:01]}  Be2 {[%clk 0:01:15]} 43. Nf1 {[%clk 0:01:00]}  d4 {[%clk 0:01:15]} 44. Nd2 {[%clk 0:00:57]}  Bd3 {[%clk 0:01:01]} 45. Rd8 {[%clk 0:00:49]}  Bf4 {[%clk 0:01:00]} 46. Nb3 {[%clk 0:00:45]}  e3 {[%clk 0:00:53]} 47. Nxd4 {[%clk 0:00:37]}  e2 {[%clk 0:00:35]} 48. Re8 {[%clk 0:00:26]}  Kf7 {[%clk 0:00:32]} 49. Rxe2 {[%clk 0:00:19]}  Bxe2 {[%clk 0:00:30]} 50. Nxe2 {[%clk 0:00:20]}  Be5 {[%clk 0:00:30]} 51. g3 {[%clk 0:00:21]}  Kf6 {[%clk 0:00:31]} 52. Kg2 {[%clk 0:00:22]}  Kf5 {[%clk 0:00:31]} 53. Kf3 {[%clk 0:00:21]}  Bd6 {[%clk 0:00:30]} 54. Nd4+ {[%clk 0:00:21]}  Kg5 {[%clk 0:00:31]} 55. Ne6+ {[%clk 0:00:21]}  Kf6 {[%clk 0:00:31]} 56. Nf4 {[%clk 0:00:21]}  Kg5 {[%clk 0:00:32]} 57. Ke4 {[%clk 0:00:21]}  Kg4 {[%clk 0:00:28]} 58. Ke3 {[%clk 0:00:21]}  Bc7 {[%clk 0:00:27]} 59. Ne2 {[%clk 0:00:19]}  Kf5 {[%clk 0:00:20]} 60. f4 {[%clk 0:00:15]}  Kg4 {[%clk 0:00:20]} 61. Kf2 {[%clk 0:00:13]}  Bb6+ {[%clk 0:00:20]} 62. Kg2 {[%clk 0:00:13]}  Be3 {[%clk 0:00:19]} 63. Kf1 {[%clk 0:00:05]}  Kf3 {[%clk 0:00:18]} 64. f5 {[%clk 0:00:04]}  Bg5 {[%clk 0:00:14]} 1/2-1/2


[Site "https://www.chess.com"]

[Event "Titled Tuesday Blitz April 18 Late 2023"]
[White "Estremera Panos, Sergio"]
[Black "Buchenau, Frank"]
[WhiteFideId "2200864"]
[BlackFideId "4604350"]
[WhiteElo "2253"]
[BlackElo "2157"]
[Result "1-0"]
[Round "08"]
[TimeControl "180+2"]
[Date "2023.04.18"]
[WhiteClock "0:01:00"]
[BlackClock "0:00:04"]

1. d4 {[%clk 0:03:00]}  e6 {[%clk 0:02:59]} 2. c4 {[%clk 0:02:58]}  Nf6 {[%clk 0:02:59]} 3. Nc3 {[%clk 0:02:58]}  Bb4 {[%clk 0:02:59]} 4. e3 {[%clk 0:02:58]}  O-O {[%clk 0:02:57]} 5. Bd3 {[%clk 0:02:59]}  c5 {[%clk 0:02:52]} 6. Ne2 {[%clk 0:02:57]}  Nc6 {[%clk 0:02:50]} 7. O-O {[%clk 0:02:55]}  d5 {[%clk 0:02:48]} 8. cxd5 {[%clk 0:02:55]}  Nxd5 {[%clk 0:02:38]} 9. a3 {[%clk 0:02:54]}  Nxc3 {[%clk 0:02:32]} 10. bxc3 {[%clk 0:02:49]}  Ba5 {[%clk 0:02:31]} 11. Bb2 {[%clk 0:02:41]}  e5 {[%clk 0:02:18]} 12. Qc2 {[%clk 0:02:32]}  g6 {[%clk 0:02:07]} 13. Rfd1 {[%clk 0:02:28]}  cxd4 {[%clk 0:01:59]} 14. cxd4 {[%clk 0:02:28]}  exd4 {[%clk 0:01:50]} 15. Nxd4 {[%clk 0:02:27]}  Nxd4 {[%clk 0:01:45]} 16. Bxd4 {[%clk 0:02:28]}  Bb6 {[%clk 0:01:38]} 17. Bb2 {[%clk 0:02:26]}  Qe7 {[%clk 0:01:33]} 18. Qc3 {[%clk 0:02:16]}  f6 {[%clk 0:01:32]} 19. h4 {[%clk 0:02:11]}  Bg4 {[%clk 0:01:31]} 20. Rdc1 {[%clk 0:02:07]}  Rac8 {[%clk 0:01:30]} 21. Qb3+ {[%clk 0:02:06]}  Be6 {[%clk 0:01:29]} 22. Qb5 {[%clk 0:02:04]}  Rfd8 {[%clk 0:01:23]} 23. h5 {[%clk 0:02:03]}  Rxc1+ {[%clk 0:01:13]} 24. Rxc1 {[%clk 0:01:59]}  Rd5 {[%clk 0:01:13]} 25. Qb3 {[%clk 0:01:40]}  Rxh5 {[%clk 0:01:02]} 26. Qc2 {[%clk 0:01:39]}  Qd6 {[%clk 0:00:54]} 27. Bxg6 {[%clk 0:01:27]}  Qh2+ {[%clk 0:00:41]} 28. Kf1 {[%clk 0:01:27]}  Rc5 {[%clk 0:00:36]} 29. Qe4 {[%clk 0:01:19]}  Rxc1+ {[%clk 0:00:24]} 30. Bxc1 {[%clk 0:01:19]}  hxg6 {[%clk 0:00:16]} 31. Qxe6+ {[%clk 0:01:17]}  Kg7 {[%clk 0:00:16]} 32. Qe7+ {[%clk 0:01:18]}  Kh6 {[%clk 0:00:16]} 33. e4+ {[%clk 0:01:16]}  g5 {[%clk 0:00:10]} 34. Qxf6+ {[%clk 0:01:15]}  Kh7 {[%clk 0:00:10]} 35. Qf7+ {[%clk 0:01:10]}  Kh6 {[%clk 0:00:09]} 36. Qf6+ {[%clk 0:01:03]}  Kh7 {[%clk 0:00:09]} 37. Qf5+ {[%clk 0:01:03]}  Kh6 {[%clk 0:00:04]} 38. Bxg5+ {[%clk 0:01:01]}  Kg7 {[%clk 0:00:04]} 39. Bf6+ {[%clk 0:01:00]} 1-0


[Site "https://www.chess.com"]

[Event "Titled Tuesday Blitz April 18 Late 2023"]
[White "Osmonbekov, Talaibek"]
[Black "Seder, Mohammed"]
[WhiteFideId "2017253"]
[BlackFideId "11505567"]
[WhiteElo "2135"]
[BlackElo "1862"]
[Result "1-0"]
[Round "08"]
[TimeControl "180+2"]
[Date "2023.04.18"]
[WhiteClock "0:00:06"]
[BlackClock "0:00:22"]

1. d4 {[%clk 0:03:00]}  Nf6 {[%clk 0:02:59]} 2. Bf4 {[%clk 0:03:01]}  c5 {[%clk 0:02:58]} 3. d5 {[%clk 0:03:00]}  Qb6 {[%clk 0:02:51]} 4. Nc3 {[%clk 0:03:01]}  d6 {[%clk 0:02:41]} 5. e4 {[%clk 0:02:59]}  Bd7 {[%clk 0:02:36]} 6. a4 {[%clk 0:02:43]}  Qxb2 {[%clk 0:02:31]} 7. Bd2 {[%clk 0:02:43]}  Qb6 {[%clk 0:02:27]} 8. h3 {[%clk 0:02:37]}  g6 {[%clk 0:02:23]} 9. f4 {[%clk 0:02:35]}  Bg7 {[%clk 0:02:20]} 10. Rb1 {[%clk 0:02:35]}  Qc7 {[%clk 0:02:17]} 11. Nf3 {[%clk 0:02:36]}  Nh5 {[%clk 0:02:13]} 12. Nb5 {[%clk 0:02:20]}  Qc8 {[%clk 0:02:02]} 13. Kf2 {[%clk 0:01:25]}  O-O {[%clk 0:01:51]} 14. g4 {[%clk 0:01:20]}  Nf6 {[%clk 0:01:50]} 15. Nc3 {[%clk 0:01:12]}  e5 {[%clk 0:01:37]} 16. f5 {[%clk 0:00:54]}  Na6 {[%clk 0:01:33]} 17. Be2 {[%clk 0:00:18]}  Nb4 {[%clk 0:01:25]} 18. Kg2 {[%clk 0:00:17]}  a6 {[%clk 0:01:07]} 19. g5 {[%clk 0:00:17]}  Nh5 {[%clk 0:01:05]} 20. f6 {[%clk 0:00:17]}  Bh8 {[%clk 0:01:05]} 21. Nh4 {[%clk 0:00:10]}  Nf4+ {[%clk 0:01:01]} 22. Bxf4 {[%clk 0:00:10]}  exf4 {[%clk 0:01:02]} 23. Qd2 {[%clk 0:00:10]}  h6 {[%clk 0:00:57]} 24. Qxf4 {[%clk 0:00:08]}  hxg5 {[%clk 0:00:55]} 25. Qxg5 {[%clk 0:00:08]}  Nxc2 {[%clk 0:00:53]} 26. Nxg6 {[%clk 0:00:08]}  Ne3+ {[%clk 0:00:22]} 27. Kf3 {[%clk 0:00:08]}  Bg4+ {[%clk 0:00:20]} 28. hxg4 {[%clk 0:00:07]}  Qxg4+ {[%clk 0:00:21]} 29. Qxg4 {[%clk 0:00:07]}  Nxg4 {[%clk 0:00:22]} 30. Rxh8# {[%clk 0:00:06]} 1-0


[Site "https://www.chess.com"]

[Event "Titled Tuesday Blitz April 18 Late 2023"]
[White "Smith, Garrett L"]
[Black "Sariego Figueredo, Wilfredo"]
[WhiteFideId "2024829"]
[BlackFideId "3500080"]
[WhiteElo "2293"]
[BlackElo "2309"]
[Result "1-0"]
[Round "08"]
[TimeControl "180+2"]
[Date "2023.04.18"]
[WhiteClock "0:00:14"]
[BlackClock "0:00:05"]

1. e4 {[%clk 0:03:00]}  c5 {[%clk 0:02:58]} 2. a3 {[%clk 0:03:00]}  e6 {[%clk 0:02:56]} 3. b4 {[%clk 0:03:01]}  cxb4 {[%clk 0:02:55]} 4. axb4 {[%clk 0:03:01]}  Bxb4 {[%clk 0:02:55]} 5. Bb2 {[%clk 0:03:02]}  Nf6 {[%clk 0:02:53]} 6. e5 {[%clk 0:03:03]}  Nd5 {[%clk 0:02:53]} 7. c4 {[%clk 0:03:03]}  Nb6 {[%clk 0:02:48]} 8. Qg4 {[%clk 0:03:01]}  g6 {[%clk 0:02:33]} 9. Nf3 {[%clk 0:02:52]}  Nc6 {[%clk 0:02:18]} 10. Nc3 {[%clk 0:02:38]}  Be7 {[%clk 0:02:12]} 11. Ne4 {[%clk 0:02:30]}  Nb4 {[%clk 0:01:44]} 12. Rc1 {[%clk 0:02:19]}  a5 {[%clk 0:01:30]} 13. h4 {[%clk 0:01:59]}  h5 {[%clk 0:01:28]} 14. Qf4 {[%clk 0:01:59]}  Na4 {[%clk 0:01:21]} 15. Ba1 {[%clk 0:01:54]}  Nc5 {[%clk 0:01:12]} 16. Qe3 {[%clk 0:01:26]}  Nxe4 {[%clk 0:01:07]} 17. Qxe4 {[%clk 0:01:26]}  Rb8 {[%clk 0:00:46]} 18. d4 {[%clk 0:01:23]}  b6 {[%clk 0:00:35]} 19. Qf4 {[%clk 0:01:08]}  Bb7 {[%clk 0:00:24]} 20. d5 {[%clk 0:01:04]}  exd5 {[%clk 0:00:18]} 21. Ng5 {[%clk 0:00:38]}  Bxg5 {[%clk 0:00:16]} 22. hxg5 {[%clk 0:00:38]}  Rf8 {[%clk 0:00:14]} 23. g4 {[%clk 0:00:35]}  hxg4 {[%clk 0:00:12]} 24. Qxg4 {[%clk 0:00:33]}  Qe7 {[%clk 0:00:13]} 25. Rh7 {[%clk 0:00:29]}  dxc4 {[%clk 0:00:12]} 26. Bh3 {[%clk 0:00:26]}  Bd5 {[%clk 0:00:10]} 27. Kf1 {[%clk 0:00:20]}  Be6 {[%clk 0:00:09]} 28. Qg3 {[%clk 0:00:20]}  Bxh3+ {[%clk 0:00:09]} 29. Qxh3 {[%clk 0:00:21]}  Qxg5 {[%clk 0:00:09]} 30. Re1 {[%clk 0:00:20]}  Nd3 {[%clk 0:00:08]} 31. Rd1 {[%clk 0:00:17]}  Nf4 {[%clk 0:00:06]} 32. Qf3 {[%clk 0:00:15]}  Qxe5 {[%clk 0:00:04]} 33. Bxe5 {[%clk 0:00:14]}  Nd3 {[%clk 0:00:04]} 34. Rxd3 {[%clk 0:00:14]}  cxd3 {[%clk 0:00:04]} 35. Bf6 {[%clk 0:00:14]}  Rc8 {[%clk 0:00:05]} 36. Qe4# {[%clk 0:00:14]} 1-0


[Site "https://www.chess.com"]

[Event "Titled Tuesday Blitz April 18 Late 2023"]
[White "Marin Masis, Jose Esteban"]
[Black "Nemsko"]
[WhiteFideId "6508146"]
[WhiteElo "1838"]
[BlackElo "2288"]
[Result "0-1"]
[Round "08"]
[TimeControl "180+2"]
[Date "2023.04.18"]
[WhiteClock "0:00:05"]
[BlackClock "0:01:29"]

1. e4 {[%clk 0:03:00]}  e5 {[%clk 0:02:58]} 2. Nf3 {[%clk 0:03:01]}  Nc6 {[%clk 0:02:58]} 3. Bb5 {[%clk 0:03:01]}  a6 {[%clk 0:02:58]} 4. Ba4 {[%clk 0:03:01]}  Nf6 {[%clk 0:02:59]} 5. d3 {[%clk 0:03:00]}  b5 {[%clk 0:02:59]} 6. Bb3 {[%clk 0:03:00]}  Be7 {[%clk 0:02:58]} 7. O-O {[%clk 0:02:59]}  O-O {[%clk 0:02:58]} 8. a4 {[%clk 0:02:59]}  Rb8 {[%clk 0:02:58]} 9. axb5 {[%clk 0:02:57]}  axb5 {[%clk 0:02:59]} 10. Nc3 {[%clk 0:02:54]}  d6 {[%clk 0:02:58]} 11. h3 {[%clk 0:02:49]}  h6 {[%clk 0:02:56]} 12. Be3 {[%clk 0:02:46]}  Be6 {[%clk 0:02:55]} 13. Nd5 {[%clk 0:02:45]}  Qd7 {[%clk 0:02:40]} 14. Kh2 {[%clk 0:02:33]}  Ra8 {[%clk 0:02:37]} 15. Qd2 {[%clk 0:02:31]}  Kh7 {[%clk 0:02:35]} 16. c3 {[%clk 0:01:55]}  Rfb8 {[%clk 0:02:29]} 17. Ng1 {[%clk 0:01:41]}  Nd8 {[%clk 0:02:23]} 18. f4 {[%clk 0:01:34]}  Rxa1 {[%clk 0:02:14]} 19. Rxa1 {[%clk 0:01:32]}  c6 {[%clk 0:02:15]} 20. Ra7 {[%clk 0:00:58]}  Rb7 {[%clk 0:02:13]} 21. Rxb7 {[%clk 0:00:52]}  Qxb7 {[%clk 0:02:14]} 22. Nxf6+ {[%clk 0:00:49]}  Bxf6 {[%clk 0:02:14]} 23. Bxe6 {[%clk 0:00:49]}  Nxe6 {[%clk 0:02:14]} 24. f5 {[%clk 0:00:39]}  Nc7 {[%clk 0:02:12]} 25. Nf3 {[%clk 0:00:37]}  Qa6 {[%clk 0:02:09]} 26. Qc2 {[%clk 0:00:35]}  Qa2 {[%clk 0:01:56]} 27. d4 {[%clk 0:00:34]}  Qc4 {[%clk 0:01:51]} 28. Nd2 {[%clk 0:00:32]}  Qe2 {[%clk 0:01:51]} 29. Bg1 {[%clk 0:00:13]}  Bg5 {[%clk 0:01:50]} 30. dxe5 {[%clk 0:00:13]}  dxe5 {[%clk 0:01:51]} 31. Qb3 {[%clk 0:00:10]}  Qxd2 {[%clk 0:01:38]} 32. Qxf7 {[%clk 0:00:10]}  Qd6 {[%clk 0:01:35]} 33. Bc5 {[%clk 0:00:06]}  Qxc5 {[%clk 0:01:32]} 34. Qxc7 {[%clk 0:00:06]}  Bf4+ {[%clk 0:01:29]} 35. Kh1 {[%clk 0:00:05]}  Qf2 {[%clk 0:01:29]} 0-1


[Site "https://www.chess.com"]